[Event "Titled Tuesday Blitz May 4 2021"]
[White "Dejmek, Mark"]
[Black "Steil-Antoni, Fiona"]
[WhiteFideId "2017628"]
[BlackFideId "4001249"]
[WhiteElo "2178"]
[BlackElo "2059"]
[Result "0-1"]
[Round "06"]
[TimeControl "180+1"]
[Date "2021.05.04"]
[WhiteClock "0:00:09"]
[BlackClock "0:00:07"]

1. e4 {[%clk 0:03:00]}  e5 {[%clk 0:02:59]} 2. Nf3 {[%clk 0:03:00]}  Nc6 {[%clk 0:03:00]} 3. Bb5 {[%clk 0:03:01]}  a6 {[%clk 0:02:59]} 4. Ba4 {[%clk 0:03:01]}  d6 {[%clk 0:02:58]} 5. Bxc6+ {[%clk 0:03:00]}  bxc6 {[%clk 0:02:58]} 6. d4 {[%clk 0:03:00]}  f6 {[%clk 0:02:51]} 7. Nc3 {[%clk 0:02:56]}  Ne7 {[%clk 0:02:32]} 8. Be3 {[%clk 0:02:56]}  Ng6 {[%clk 0:02:21]} 9. Qd2 {[%clk 0:02:45]}  Be7 {[%clk 0:02:20]} 10. O-O-O {[%clk 0:02:44]}  exd4 {[%clk 0:01:45]} 11. Nxd4 {[%clk 0:02:33]}  Ne5 {[%clk 0:01:45]} 12. h3 {[%clk 0:02:03]}  Bd7 {[%clk 0:01:30]} 13. Qe2 {[%clk 0:01:58]}  c5 {[%clk 0:01:03]} 14. Nf5 {[%clk 0:01:50]}  Bb5 {[%clk 0:00:54]} 15. Nxb5 {[%clk 0:01:44]}  axb5 {[%clk 0:00:55]} 16. Nxg7+ {[%clk 0:01:29]}  Kf7 {[%clk 0:00:43]} 17. Nf5 {[%clk 0:00:57]}  Rxa2 {[%clk 0:00:38]} 18. Qxb5 {[%clk 0:00:47]}  Ra1+ {[%clk 0:00:29]} 19. Kd2 {[%clk 0:00:46]}  Rxd1+ {[%clk 0:00:28]} 20. Rxd1 {[%clk 0:00:40]}  c6 {[%clk 0:00:28]} 21. Qe2 {[%clk 0:00:33]}  Qa5+ {[%clk 0:00:25]} 22. c3 {[%clk 0:00:29]}  Rb8 {[%clk 0:00:22]} 23. Ke1 {[%clk 0:00:26]}  Qa2 {[%clk 0:00:17]} 24. Qh5+ {[%clk 0:00:23]}  Ke6 {[%clk 0:00:08]} 25. Qxh7 {[%clk 0:00:16]}  Rb7 {[%clk 0:00:04]} 26. Ng7+ {[%clk 0:00:14]}  Kd7 {[%clk 0:00:04]} 27. Qf5+ {[%clk 0:00:13]}  Kc7 {[%clk 0:00:02]} 28. Ne6+ {[%clk 0:00:10]}  Kb6 {[%clk 0:00:03]} 29. Nf4 {[%clk 0:00:10]}  Qxb2 {[%clk 0:00:02]} 30. Nd3 {[%clk 0:00:09]}  Qxc3+ {[%clk 0:00:02]} 31. Kf1 {[%clk 0:00:06]}  Nxd3 {[%clk 0:00:03]} 32. Kg1 {[%clk 0:00:06]}  Nb2 {[%clk 0:00:03]} 33. Rf1 {[%clk 0:00:05]}  Kc7 {[%clk 0:00:03]} 34. Qe6 {[%clk 0:00:05]}  Bd8 {[%clk 0:00:04]} 35. Qf7+ {[%clk 0:00:05]}  Kc8 {[%clk 0:00:03]} 36. Qe6+ {[%clk 0:00:06]}  Kb8 {[%clk 0:00:03]} 37. Qxd6+ {[%clk 0:00:06]}  Bc7 {[%clk 0:00:04]} 38. Qf8+ {[%clk 0:00:07]}  Ka7 {[%clk 0:00:03]} 39. Qxc5+ {[%clk 0:00:06]}  Qxc5 {[%clk 0:00:03]} 40. Bxc5+ {[%clk 0:00:07]}  Kb8 {[%clk 0:00:04]} 41. Bd4 {[%clk 0:00:08]}  Nc4 {[%clk 0:00:04]} 42. Bxf6 {[%clk 0:00:08]}  Be5 {[%clk 0:00:05]} 43. Bh4 {[%clk 0:00:07]}  Rb2 {[%clk 0:00:04]} 44. g3 {[%clk 0:00:06]}  Nd2 {[%clk 0:00:04]} 45. Kg2 {[%clk 0:00:06]}  Nxe4 {[%clk 0:00:04]} 46. Re1 {[%clk 0:00:06]}  Nxf2 {[%clk 0:00:04]} 47. Rxe5 {[%clk 0:00:05]}  Nd3+ {[%clk 0:00:04]} 48. Kf3 {[%clk 0:00:06]}  Nxe5+ {[%clk 0:00:04]} 49. Ke4 {[%clk 0:00:05]}  Ng6 {[%clk 0:00:04]} 50. Bg5 {[%clk 0:00:05]}  Rb4+ {[%clk 0:00:04]} 51. Kf5 {[%clk 0:00:05]}  Nf8 {[%clk 0:00:04]} 52. h4 {[%clk 0:00:05]}  Kc8 {[%clk 0:00:04]} 53. h5 {[%clk 0:00:05]}  Rb5+ {[%clk 0:00:04]} 54. Kf6 {[%clk 0:00:04]}  Nd7+ {[%clk 0:00:04]} 55. Kg6 {[%clk 0:00:05]}  Ne5+ {[%clk 0:00:04]} 56. Kg7 {[%clk 0:00:04]}  Nf3 {[%clk 0:00:03]} 57. Bf6 {[%clk 0:00:05]}  Kd7 {[%clk 0:00:03]} 58. h6 {[%clk 0:00:05]}  Ng5 {[%clk 0:00:01]} 59. Bxg5 {[%clk 0:00:04]}  Rxg5+ {[%clk 0:00:02]} 60. Kf6 {[%clk 0:00:05]}  Rxg3 {[%clk 0:00:02]} 61. h7 {[%clk 0:00:05]}  Rh3 {[%clk 0:00:02]} 62. Kg7 {[%clk 0:00:05]}  Rxh7+ {[%clk 0:00:02]} 63. Kxh7 {[%clk 0:00:06]}  c5 {[%clk 0:00:02]} 64. Kg6 {[%clk 0:00:07]}  c4 {[%clk 0:00:03]} 65. Kf5 {[%clk 0:00:08]}  c3 {[%clk 0:00:04]} 66. Ke4 {[%clk 0:00:09]}  c2 {[%clk 0:00:05]} 67. Kd3 {[%clk 0:00:10]}  c1=Q {[%clk 0:00:06]} 68. Ke4 {[%clk 0:00:09]}  Qc6+ {[%clk 0:00:07]} 0-1


[Site "https://www.chess.com"]

[Event "Titled Tuesday Blitz May 4 2021"]
[White "Demin, Vladimir"]
[Black "Dowgird, Filip"]
[WhiteFideId "4167457"]
[BlackFideId "1121235"]
[WhiteElo "2475"]
[BlackElo "2209"]
[Result "1-0"]
[Round "06"]
[TimeControl "180+1"]
[Date "2021.05.04"]
[WhiteClock "0:00:21"]
[BlackClock "0:00:44"]

1. e4 {[%clk 0:02:50]}  d6 {[%clk 0:02:59]} 2. d4 {[%clk 0:02:23]}  Nf6 {[%clk 0:02:57]} 3. Nc3 {[%clk 0:02:24]}  c6 {[%clk 0:02:57]} 4. a4 {[%clk 0:02:23]}  Nbd7 {[%clk 0:02:56]} 5. f4 {[%clk 0:02:21]}  e5 {[%clk 0:02:53]} 6. Nf3 {[%clk 0:02:12]}  Qa5 {[%clk 0:02:44]} 7. Bd3 {[%clk 0:01:55]}  exd4 {[%clk 0:02:40]} 8. Nxd4 {[%clk 0:01:54]}  Nc5 {[%clk 0:02:41]} 9. O-O {[%clk 0:01:53]}  Be7 {[%clk 0:02:28]} 10. e5 {[%clk 0:01:44]}  dxe5 {[%clk 0:02:21]} 11. fxe5 {[%clk 0:01:45]}  Ng4 {[%clk 0:02:07]} 12. e6 {[%clk 0:01:24]}  Nxd3 {[%clk 0:02:05]} 13. Qxg4 {[%clk 0:01:16]}  Nxc1 {[%clk 0:02:03]} 14. Qxg7 {[%clk 0:01:12]}  Rf8 {[%clk 0:02:00]} 15. exf7+ {[%clk 0:01:11]}  Kd8 {[%clk 0:02:01]} 16. Raxc1 {[%clk 0:01:09]}  Kc7 {[%clk 0:01:53]} 17. Rcd1 {[%clk 0:01:00]}  Qg5 {[%clk 0:01:43]} 18. Qxh7 {[%clk 0:00:38]}  Bg4 {[%clk 0:01:40]} 19. Rde1 {[%clk 0:00:34]}  Bc5 {[%clk 0:01:38]} 20. Qd3 {[%clk 0:00:29]}  Rad8 {[%clk 0:01:37]} 21. Qg3+ {[%clk 0:00:29]}  Kc8 {[%clk 0:01:26]} 22. Ne2 {[%clk 0:00:27]}  Rxd4 {[%clk 0:01:26]} 23. Nxd4 {[%clk 0:00:27]}  Bxd4+ {[%clk 0:01:26]} 24. Kh1 {[%clk 0:00:27]}  Bc5 {[%clk 0:01:12]} 25. h3 {[%clk 0:00:22]}  Qd5 {[%clk 0:00:44]} 26. Qxg4+ {[%clk 0:00:21]} 1-0


[Site "https://www.chess.com"]

[Event "Titled Tuesday Blitz May 4 2021"]
[White "Devaev, Alexander"]
[Black "Zhou, Qiyu"]
[WhiteFideId "4169395"]
[BlackFideId "505161"]
[WhiteElo "2185"]
[BlackElo "1925"]
[Result "1-0"]
[Round "06"]
[TimeControl "180+1"]
[Date "2021.05.04"]
[WhiteClock "0:01:55"]
[BlackClock "0:00:45"]

1. d4 {[%clk 0:02:57]}  Nf6 {[%clk 0:02:57]} 2. c4 {[%clk 0:02:57]}  e6 {[%clk 0:02:53]} 3. Nc3 {[%clk 0:02:58]}  Bb4 {[%clk 0:02:51]} 4. e3 {[%clk 0:02:58]}  O-O {[%clk 0:02:47]} 5. Ne2 {[%clk 0:02:58]}  b6 {[%clk 0:02:46]} 6. a3 {[%clk 0:02:58]}  Bxc3+ {[%clk 0:02:37]} 7. Nxc3 {[%clk 0:02:58]}  Bb7 {[%clk 0:02:37]} 8. Qc2 {[%clk 0:02:58]}  d6 {[%clk 0:02:37]} 9. e4 {[%clk 0:02:56]}  Nbd7 {[%clk 0:02:37]} 10. Be2 {[%clk 0:02:56]}  e5 {[%clk 0:02:37]} 11. d5 {[%clk 0:02:56]}  h6 {[%clk 0:02:37]} 12. g3 {[%clk 0:02:53]}  Nh7 {[%clk 0:02:29]} 13. Be3 {[%clk 0:02:51]}  Qe7 {[%clk 0:02:23]} 14. O-O-O {[%clk 0:02:45]}  a5 {[%clk 0:02:18]} 15. f4 {[%clk 0:02:45]}  f6 {[%clk 0:02:18]} 16. f5 {[%clk 0:02:45]}  Nc5 {[%clk 0:02:16]} 17. Bh5 {[%clk 0:02:42]}  a4 {[%clk 0:02:09]} 18. Bxc5 {[%clk 0:02:42]}  dxc5 {[%clk 0:02:01]} 19. Nxa4 {[%clk 0:02:43]}  Ng5 {[%clk 0:01:57]} 20. h4 {[%clk 0:02:40]}  Nf7 {[%clk 0:01:57]} 21. Bxf7+ {[%clk 0:02:40]}  Rxf7 {[%clk 0:01:58]} 22. g4 {[%clk 0:02:40]}  Qd6 {[%clk 0:01:52]} 23. Rdg1 {[%clk 0:02:38]}  c6 {[%clk 0:01:40]} 24. Nc3 {[%clk 0:02:35]}  Ba6 {[%clk 0:01:37]} 25. Qb3 {[%clk 0:02:24]}  b5 {[%clk 0:01:28]} 26. dxc6 {[%clk 0:02:19]}  bxc4 {[%clk 0:01:21]} 27. Qc2 {[%clk 0:02:18]}  Qxc6 {[%clk 0:01:20]} 28. g5 {[%clk 0:02:18]}  h5 {[%clk 0:01:16]} 29. Qe2 {[%clk 0:02:10]}  Rb7 {[%clk 0:01:04]} 30. gxf6 {[%clk 0:02:07]}  Qxf6 {[%clk 0:01:03]} 31. Rg6 {[%clk 0:02:08]}  Qd8 {[%clk 0:00:57]} 32. Rhg1 {[%clk 0:02:08]}  Rab8 {[%clk 0:00:56]} 33. Qxh5 {[%clk 0:02:05]}  Qd3 {[%clk 0:00:45]} 34. Qg5 {[%clk 0:01:55]} 1-0


[Site "https://www.chess.com"]

[Event "Titled Tuesday Blitz May 4 2021"]
[White "Djordjevic, Vuk"]
[Black "Landaw, Julian"]
[WhiteFideId "902098"]
[BlackFideId "2023342"]
[WhiteElo "2463"]
[BlackElo "2312"]
[Result "1-0"]
[Round "06"]
[TimeControl "180+1"]
[Date "2021.05.04"]
[WhiteClock "0:00:08"]
[BlackClock "0:00:04"]

1. d4 {[%clk 0:03:00]}  Nf6 {[%clk 0:02:56]} 2. Bg5 {[%clk 0:03:01]}  Ne4 {[%clk 0:02:56]} 3. Bf4 {[%clk 0:03:01]}  c5 {[%clk 0:02:56]} 4. f3 {[%clk 0:03:00]}  Qa5+ {[%clk 0:02:56]} 5. c3 {[%clk 0:03:00]}  Nf6 {[%clk 0:02:56]} 6. d5 {[%clk 0:03:01]}  d6 {[%clk 0:02:56]} 7. e4 {[%clk 0:03:01]}  b5 {[%clk 0:02:55]} 8. a4 {[%clk 0:02:57]}  b4 {[%clk 0:02:47]} 9. Bb5+ {[%clk 0:02:42]}  Bd7 {[%clk 0:02:45]} 10. Bd3 {[%clk 0:02:40]}  Qb6 {[%clk 0:02:36]} 11. a5 {[%clk 0:02:38]}  Qb7 {[%clk 0:02:30]} 12. a6 {[%clk 0:02:32]}  Qb6 {[%clk 0:02:25]} 13. cxb4 {[%clk 0:02:32]}  Qxb4+ {[%clk 0:02:06]} 14. Nc3 {[%clk 0:02:14]}  Qxb2 {[%clk 0:01:55]} 15. Nge2 {[%clk 0:02:14]}  g6 {[%clk 0:01:48]} 16. e5 {[%clk 0:01:11]}  Nh5 {[%clk 0:01:30]} 17. Rb1 {[%clk 0:01:11]}  Qa3 {[%clk 0:01:29]} 18. Bc1 {[%clk 0:01:10]}  Qa5 {[%clk 0:01:26]} 19. g4 {[%clk 0:01:07]}  Ng7 {[%clk 0:00:52]} 20. Bf4 {[%clk 0:01:07]}  g5 {[%clk 0:00:32]} 21. Bxg5 {[%clk 0:00:54]}  dxe5 {[%clk 0:00:32]} 22. O-O {[%clk 0:00:49]}  c4 {[%clk 0:00:19]} 23. Be4 {[%clk 0:00:40]}  Nxa6 {[%clk 0:00:20]} 24. d6 {[%clk 0:00:31]}  Rc8 {[%clk 0:00:20]} 25. Nd5 {[%clk 0:00:21]}  f6 {[%clk 0:00:17]} 26. Bxf6 {[%clk 0:00:18]}  exf6 {[%clk 0:00:16]} 27. Nxf6+ {[%clk 0:00:19]}  Kd8 {[%clk 0:00:14]} 28. Nxd7 {[%clk 0:00:20]}  Kxd7 {[%clk 0:00:12]} 29. Rb7+ {[%clk 0:00:20]}  Kd8 {[%clk 0:00:12]} 30. Kh1 {[%clk 0:00:14]}  Nc5 {[%clk 0:00:09]} 31. Rf7 {[%clk 0:00:12]}  Nd7 {[%clk 0:00:07]} 32. Qc1 {[%clk 0:00:09]}  Ne6 {[%clk 0:00:06]} 33. Bf5 {[%clk 0:00:08]}  Nec5 {[%clk 0:00:04]} 34. Qg5+ {[%clk 0:00:07]}  Ke8 {[%clk 0:00:04]} 35. Re7+ {[%clk 0:00:08]} 1-0


[Site "https://www.chess.com"]

[Event "Titled Tuesday Blitz May 4 2021"]
[White "Donatti, Alvaro"]
[Black "Mohota, Nisha"]
[WhiteFideId "3000303"]
[BlackFideId "5004330"]
[WhiteElo "2138"]
[BlackElo "2117"]
[Result "0-1"]
[Round "06"]
[TimeControl "180+1"]
[Date "2021.05.04"]
[WhiteClock "0:00:02"]
[BlackClock "0:00:28"]

1. e4 {[%clk 0:03:00]}  e5 {[%clk 0:02:59]} 2. Nf3 {[%clk 0:02:59]}  Nf6 {[%clk 0:02:59]} 3. Nc3 {[%clk 0:02:58]}  Nc6 {[%clk 0:02:59]} 4. Bb5 {[%clk 0:02:57]}  Bd6 {[%clk 0:02:58]} 5. d3 {[%clk 0:02:56]}  O-O {[%clk 0:02:57]} 6. O-O {[%clk 0:02:55]}  a6 {[%clk 0:02:57]} 7. Ba4 {[%clk 0:02:54]}  h6 {[%clk 0:02:57]} 8. Re1 {[%clk 0:02:43]}  Re8 {[%clk 0:02:57]} 9. a3 {[%clk 0:02:40]}  Bc5 {[%clk 0:02:56]} 10. h3 {[%clk 0:02:36]}  d6 {[%clk 0:02:48]} 11. b4 {[%clk 0:02:31]}  Ba7 {[%clk 0:02:47]} 12. Ne2 {[%clk 0:02:29]}  Bd7 {[%clk 0:02:46]} 13. c3 {[%clk 0:02:26]}  b5 {[%clk 0:02:43]} 14. Bb3 {[%clk 0:02:25]}  a5 {[%clk 0:02:43]} 15. Bb2 {[%clk 0:02:03]}  axb4 {[%clk 0:02:43]} 16. axb4 {[%clk 0:02:01]}  Bb6 {[%clk 0:02:43]} 17. Ng3 {[%clk 0:01:59]}  Be6 {[%clk 0:02:38]} 18. Rxa8 {[%clk 0:01:53]}  Qxa8 {[%clk 0:02:38]} 19. Qc2 {[%clk 0:01:46]}  d5 {[%clk 0:02:35]} 20. exd5 {[%clk 0:01:40]}  Bxd5 {[%clk 0:02:35]} 21. Bxd5 {[%clk 0:01:33]}  Nxd5 {[%clk 0:02:36]} 22. Nf5 {[%clk 0:01:27]}  Re6 {[%clk 0:02:30]} 23. Ra1 {[%clk 0:01:17]}  Qe8 {[%clk 0:02:27]} 24. Qb3 {[%clk 0:01:14]}  Nf4 {[%clk 0:02:26]} 25. c4 {[%clk 0:01:10]}  Rf6 {[%clk 0:02:19]} 26. Ng3 {[%clk 0:01:07]}  Nd4 {[%clk 0:02:14]} 27. Nxd4 {[%clk 0:01:03]}  Bxd4 {[%clk 0:02:14]} 28. Bxd4 {[%clk 0:01:00]}  exd4 {[%clk 0:02:14]} 29. Ne4 {[%clk 0:01:00]}  Rg6 {[%clk 0:02:12]} 30. Ng3 {[%clk 0:00:54]}  bxc4 {[%clk 0:02:03]} 31. Qxc4 {[%clk 0:00:48]}  c6 {[%clk 0:01:53]} 32. Qxd4 {[%clk 0:00:39]}  Rxg3 {[%clk 0:01:35]} 33. Qxf4 {[%clk 0:00:38]}  Rxd3 {[%clk 0:01:35]} 34. Ra7 {[%clk 0:00:31]}  Rd5 {[%clk 0:01:19]} 35. Rb7 {[%clk 0:00:27]}  Rd8 {[%clk 0:01:11]} 36. Rc7 {[%clk 0:00:24]}  f6 {[%clk 0:01:08]} 37. Qc4+ {[%clk 0:00:22]}  Kh7 {[%clk 0:01:05]} 38. Qxc6 {[%clk 0:00:20]}  Rd1+ {[%clk 0:01:02]} 39. Kh2 {[%clk 0:00:19]}  Qe5+ {[%clk 0:01:03]} 40. g3 {[%clk 0:00:19]}  Rd2 {[%clk 0:01:00]} 41. Kg2 {[%clk 0:00:09]}  Qd4 {[%clk 0:00:53]} 42. Qf3 {[%clk 0:00:07]}  Qd6 {[%clk 0:00:42]} 43. Qf5+ {[%clk 0:00:06]}  Kg8 {[%clk 0:00:37]} 44. Qc8+ {[%clk 0:00:04]}  Qd8 {[%clk 0:00:34]} 45. Qxd8+ {[%clk 0:00:04]}  Rxd8 {[%clk 0:00:33]} 46. Rb7 {[%clk 0:00:04]}  Rd2 {[%clk 0:00:32]} 47. b5 {[%clk 0:00:04]}  Rb2 {[%clk 0:00:32]} 48. b6 {[%clk 0:00:04]}  Kh7 {[%clk 0:00:32]} 49. h4 {[%clk 0:00:04]}  h5 {[%clk 0:00:31]} 50. Kf3 {[%clk 0:00:03]}  Kg6 {[%clk 0:00:29]} 51. Kf4 {[%clk 0:00:02]}  Rxf2+ {[%clk 0:00:28]} 0-1


[Site "https://www.chess.com"]

[Event "Titled Tuesday Blitz May 4 2021"]
[White "Dushyant Sharma"]
[Black "Pile, Richard"]
[WhiteFideId "25065130"]
[BlackFideId "624110"]
[WhiteElo "2019"]
[BlackElo "2376"]
[Result "0-1"]
[Round "06"]
[TimeControl "180+1"]
[Date "2021.05.04"]
[WhiteClock "0:00:03"]
[BlackClock "0:00:10"]

1. e4 {[%clk 0:03:00]}  c5 {[%clk 0:02:59]} 2. Nf3 {[%clk 0:02:58]}  Nc6 {[%clk 0:02:59]} 3. d4 {[%clk 0:02:58]}  cxd4 {[%clk 0:03:00]} 4. Nxd4 {[%clk 0:02:59]}  e5 {[%clk 0:02:58]} 5. Nxc6 {[%clk 0:02:58]}  bxc6 {[%clk 0:02:58]} 6. Nc3 {[%clk 0:02:59]}  Nf6 {[%clk 0:02:57]} 7. Bd3 {[%clk 0:02:59]}  Bc5 {[%clk 0:02:55]} 8. O-O {[%clk 0:02:59]}  a5 {[%clk 0:02:47]} 9. a3 {[%clk 0:02:58]}  O-O {[%clk 0:02:43]} 10. Kh1 {[%clk 0:02:59]}  d6 {[%clk 0:02:33]} 11. Be3 {[%clk 0:02:58]}  Bxe3 {[%clk 0:02:29]} 12. fxe3 {[%clk 0:02:59]}  Be6 {[%clk 0:02:29]} 13. Qe1 {[%clk 0:01:24]}  Rb8 {[%clk 0:02:26]} 14. Rb1 {[%clk 0:01:22]}  d5 {[%clk 0:01:58]} 15. exd5 {[%clk 0:01:20]}  cxd5 {[%clk 0:01:59]} 16. Qg3 {[%clk 0:01:21]}  e4 {[%clk 0:01:49]} 17. Be2 {[%clk 0:01:17]}  Kh8 {[%clk 0:01:02]} 18. Rbd1 {[%clk 0:01:16]}  Qe7 {[%clk 0:00:57]} 19. b3 {[%clk 0:01:14]}  Qxa3 {[%clk 0:00:55]} 20. Nb5 {[%clk 0:01:12]}  Qc5 {[%clk 0:00:51]} 21. Nd4 {[%clk 0:01:12]}  Bd7 {[%clk 0:00:46]} 22. Qh4 {[%clk 0:00:58]}  Rb6 {[%clk 0:00:46]} 23. Rf4 {[%clk 0:00:49]}  Ng8 {[%clk 0:00:33]} 24. Rdf1 {[%clk 0:00:48]}  f6 {[%clk 0:00:30]} 25. Bg4 {[%clk 0:00:46]}  Bxg4 {[%clk 0:00:20]} 26. Qxg4 {[%clk 0:00:47]}  Qc8 {[%clk 0:00:21]} 27. Qh5 {[%clk 0:00:40]}  g6 {[%clk 0:00:21]} 28. Qxd5 {[%clk 0:00:40]}  Re8 {[%clk 0:00:20]} 29. h3 {[%clk 0:00:36]}  a4 {[%clk 0:00:19]} 30. bxa4 {[%clk 0:00:35]}  f5 {[%clk 0:00:19]} 31. a5 {[%clk 0:00:34]}  Ra6 {[%clk 0:00:18]} 32. c4 {[%clk 0:00:32]}  Nf6 {[%clk 0:00:18]} 33. Qb5 {[%clk 0:00:26]}  Nh5 {[%clk 0:00:19]} 34. Rh4 {[%clk 0:00:18]}  Ng3+ {[%clk 0:00:18]} 35. Kg1 {[%clk 0:00:18]}  Nxf1 {[%clk 0:00:19]} 36. Kxf1 {[%clk 0:00:19]}  Rd6 {[%clk 0:00:16]} 37. c5 {[%clk 0:00:18]}  Rd5 {[%clk 0:00:16]} 38. a6 {[%clk 0:00:18]}  Rxc5 {[%clk 0:00:15]} 39. Qb6 {[%clk 0:00:17]}  Rc1+ {[%clk 0:00:14]} 40. Kf2 {[%clk 0:00:17]}  Qc7 {[%clk 0:00:12]} 41. Qf6+ {[%clk 0:00:16]}  Qg7 {[%clk 0:00:12]} 42. Qb6 {[%clk 0:00:14]}  Rec8 {[%clk 0:00:11]} 43. a7 {[%clk 0:00:13]}  Ra1 {[%clk 0:00:09]} 44. Qb8 {[%clk 0:00:07]}  Ra2+ {[%clk 0:00:09]} 45. Kg3 {[%clk 0:00:05]}  Qc7+ {[%clk 0:00:10]} 46. Qxc7 {[%clk 0:00:04]}  Rxc7 {[%clk 0:00:11]} 47. a8=Q+ {[%clk 0:00:03]}  Rxa8 {[%clk 0:00:10]} 0-1


[Site "https://www.chess.com"]

[Event "Titled Tuesday Blitz May 4 2021"]
[White "Dylag, Emilia"]
[Black "Hartikainen, Jarmo"]
[WhiteFideId "21805172"]
[BlackFideId "503134"]
[WhiteElo "1871"]
[BlackElo "2062"]
[Result "1/2-1/2"]
[Round "06"]
[TimeControl "180+1"]
[Date "2021.05.04"]
[WhiteClock "0:01:47"]
[BlackClock "0:01:17"]

1. d4 {[%clk 0:03:00]}  Nf6 {[%clk 0:02:59]} 2. c4 {[%clk 0:03:00]}  g6 {[%clk 0:02:59]} 3. Nc3 {[%clk 0:03:01]}  d5 {[%clk 0:02:59]} 4. cxd5 {[%clk 0:03:00]}  Nxd5 {[%clk 0:03:00]} 5. Bd2 {[%clk 0:03:00]}  Bg7 {[%clk 0:02:57]} 6. e4 {[%clk 0:02:59]}  Nb6 {[%clk 0:02:56]} 7. Be3 {[%clk 0:02:58]}  Nc6 {[%clk 0:02:49]} 8. Nf3 {[%clk 0:02:56]}  O-O {[%clk 0:02:45]} 9. Be2 {[%clk 0:02:56]}  Bg4 {[%clk 0:02:44]} 10. d5 {[%clk 0:02:56]}  Bxf3 {[%clk 0:02:24]} 11. gxf3 {[%clk 0:02:49]}  Ne5 {[%clk 0:02:24]} 12. f4 {[%clk 0:02:39]}  Nec4 {[%clk 0:02:22]} 13. Bd4 {[%clk 0:02:31]}  e5 {[%clk 0:02:13]} 14. fxe5 {[%clk 0:02:28]}  Nxe5 {[%clk 0:01:50]} 15. f4 {[%clk 0:02:24]}  Nec4 {[%clk 0:01:44]} 16. Bxc4 {[%clk 0:02:24]}  Nxc4 {[%clk 0:01:43]} 17. Bxg7 {[%clk 0:02:23]}  Qh4+ {[%clk 0:01:42]} 18. Ke2 {[%clk 0:02:11]}  Qg4+ {[%clk 0:01:34]} 19. Kf2 {[%clk 0:02:00]}  Qxf4+ {[%clk 0:01:32]} 20. Kg1 {[%clk 0:01:57]}  Qg5+ {[%clk 0:01:22]} 21. Kf2 {[%clk 0:01:57]}  Qf4+ {[%clk 0:01:22]} 22. Ke1 {[%clk 0:01:52]}  Qh4+ {[%clk 0:01:19]} 23. Ke2 {[%clk 0:01:49]}  Qg4+ {[%clk 0:01:18]} 24. Kf2 {[%clk 0:01:47]}  Qf4+ {[%clk 0:01:17]} 1/2-1/2


[Site "https://www.chess.com"]

[Event "Titled Tuesday Blitz May 4 2021"]
[White "Eynullayev, Altay"]
[Black "Rostovtsev, Dmitry"]
[WhiteFideId "13413562"]
[BlackFideId "34278320"]
[WhiteElo "2079"]
[BlackElo "2197"]
[Result "1-0"]
[Round "06"]
[TimeControl "180+1"]
[Date "2021.05.04"]
[WhiteClock "0:00:13"]
[BlackClock "0:00:08"]

1. e4 {[%clk 0:03:00]}  c5 {[%clk 0:02:53]} 2. Nf3 {[%clk 0:03:01]}  d6 {[%clk 0:02:53]} 3. d4 {[%clk 0:03:01]}  cxd4 {[%clk 0:02:54]} 4. Nxd4 {[%clk 0:03:01]}  Nf6 {[%clk 0:02:54]} 5. Nc3 {[%clk 0:03:02]}  Nc6 {[%clk 0:02:55]} 6. Bg5 {[%clk 0:02:55]}  e6 {[%clk 0:02:55]} 7. Bb5 {[%clk 0:02:56]}  Bd7 {[%clk 0:02:52]} 8. Qd3 {[%clk 0:02:56]}  Be7 {[%clk 0:02:49]} 9. O-O-O {[%clk 0:02:38]}  O-O {[%clk 0:02:49]} 10. Bxc6 {[%clk 0:02:30]}  bxc6 {[%clk 0:02:46]} 11. Nb3 {[%clk 0:02:31]}  e5 {[%clk 0:02:43]} 12. f4 {[%clk 0:02:11]}  h6 {[%clk 0:02:07]} 13. fxe5 {[%clk 0:02:10]}  hxg5 {[%clk 0:02:04]} 14. exd6 {[%clk 0:02:10]}  Bg4 {[%clk 0:02:00]} 15. dxe7 {[%clk 0:02:10]}  Qxe7 {[%clk 0:02:01]} 16. Rde1 {[%clk 0:02:08]}  a5 {[%clk 0:01:58]} 17. e5 {[%clk 0:02:05]}  Nd5 {[%clk 0:01:57]} 18. Nd4 {[%clk 0:01:43]}  Nb4 {[%clk 0:01:49]} 19. Qe4 {[%clk 0:01:40]}  Be6 {[%clk 0:01:49]} 20. a3 {[%clk 0:01:30]}  Na6 {[%clk 0:01:04]} 21. h4 {[%clk 0:01:09]}  g4 {[%clk 0:00:59]} 22. h5 {[%clk 0:01:06]}  Nc5 {[%clk 0:00:51]} 23. Qf4 {[%clk 0:01:02]}  Rfc8 {[%clk 0:00:11]} 24. h6 {[%clk 0:01:02]}  g6 {[%clk 0:00:11]} 25. Nxe6 {[%clk 0:00:46]}  Nxe6 {[%clk 0:00:12]} 26. Qxg4 {[%clk 0:00:44]}  Rab8 {[%clk 0:00:11]} 27. h7+ {[%clk 0:00:36]}  Kh8 {[%clk 0:00:11]} 28. Qf3 {[%clk 0:00:34]}  Nd4 {[%clk 0:00:10]} 29. Qf6+ {[%clk 0:00:33]}  Qxf6 {[%clk 0:00:10]} 30. exf6 {[%clk 0:00:34]}  Ne6 {[%clk 0:00:11]} 31. Ne4 {[%clk 0:00:32]}  Rd8 {[%clk 0:00:10]} 32. Rd1 {[%clk 0:00:21]}  a4 {[%clk 0:00:09]} 33. Rd6 {[%clk 0:00:20]}  Rbc8 {[%clk 0:00:08]} 34. Rhd1 {[%clk 0:00:20]}  Rxd6 {[%clk 0:00:08]} 35. Rxd6 {[%clk 0:00:20]}  Kxh7 {[%clk 0:00:08]} 36. Rd7 {[%clk 0:00:21]}  Rf8 {[%clk 0:00:07]} 37. Nd6 {[%clk 0:00:21]}  Ng5 {[%clk 0:00:05]} 38. b3 {[%clk 0:00:20]}  axb3 {[%clk 0:00:04]} 39. cxb3 {[%clk 0:00:21]}  Kh6 {[%clk 0:00:04]} 40. a4 {[%clk 0:00:22]}  Rb8 {[%clk 0:00:04]} 41. Kc2 {[%clk 0:00:18]}  Kh5 {[%clk 0:00:03]} 42. a5 {[%clk 0:00:19]}  Ra8 {[%clk 0:00:03]} 43. b4 {[%clk 0:00:16]}  c5 {[%clk 0:00:03]} 44. Kb3 {[%clk 0:00:13]}  cxb4 {[%clk 0:00:02]} 45. Kxb4 {[%clk 0:00:14]}  Ne6 {[%clk 0:00:02]} 46. Nxf7 {[%clk 0:00:13]}  Nd4 {[%clk 0:00:02]} 47. Rxd4 {[%clk 0:00:13]}  g5 {[%clk 0:00:01]} 48. Rd5 {[%clk 0:00:13]}  Kg6 {[%clk 0:00:02]} 49. Nxg5 {[%clk 0:00:13]}  Kxf6 {[%clk 0:00:03]} 50. Ne4+ {[%clk 0:00:13]}  Ke6 {[%clk 0:00:03]} 51. Rb5 {[%clk 0:00:13]}  Ke7 {[%clk 0:00:03]} 52. Nc5 {[%clk 0:00:12]}  Kd6 {[%clk 0:00:03]} 53. a6 {[%clk 0:00:12]}  Kd5 {[%clk 0:00:04]} 54. Ka5 {[%clk 0:00:12]}  Kc6 {[%clk 0:00:04]} 55. Na4 {[%clk 0:00:11]}  Kc7 {[%clk 0:00:03]} 56. Rb7+ {[%clk 0:00:11]}  Kc6 {[%clk 0:00:03]} 57. Nb6 {[%clk 0:00:11]}  Re8 {[%clk 0:00:03]} 58. Nc4 {[%clk 0:00:10]}  Re1 {[%clk 0:00:02]} 59. Rb6+ {[%clk 0:00:10]}  Kc7 {[%clk 0:00:02]} 60. Rb4 {[%clk 0:00:10]}  Ra1+ {[%clk 0:00:03]} 61. Ra4 {[%clk 0:00:11]}  Re1 {[%clk 0:00:03]} 62. g4 {[%clk 0:00:11]}  Re4 {[%clk 0:00:02]} 63. g5 {[%clk 0:00:10]}  Rxc4 {[%clk 0:00:02]} 64. Rxc4+ {[%clk 0:00:10]}  Kd6 {[%clk 0:00:03]} 65. g6 {[%clk 0:00:10]}  Ke6 {[%clk 0:00:04]} 66. g7 {[%clk 0:00:11]}  Kf5 {[%clk 0:00:05]} 67. g8=Q {[%clk 0:00:11]}  Ke5 {[%clk 0:00:05]} 68. Qg5+ {[%clk 0:00:11]}  Kd6 {[%clk 0:00:06]} 69. Rd4+ {[%clk 0:00:11]}  Kc6 {[%clk 0:00:07]} 70. Qd5+ {[%clk 0:00:11]}  Kc7 {[%clk 0:00:07]} 71. Qd7+ {[%clk 0:00:12]}  Kb8 {[%clk 0:00:08]} 72. Qb7# {[%clk 0:00:13]} 1-0


[Site "https://www.chess.com"]